bitfinex/quotes_SOLUSD_20230103
["timestamp","ask_amount","ask_price","bid_price","bid_amount"]
[1672758052683,114.8703,12.29,12.277,20.0]
[1672758052896,61.09,12.289,12.275,79.44711669]
[1672758053313,30.0,12.288,12.275,79.44711669]
[1672758053749,61.09,12.289,12.275,79.44711669]
[1672758054382,61.09,12.289,12.276,30.0]
[1672758054594,114.8703,12.29,12.277,20.0]
[1672758054805,61.09,12.289,12.277,20.0]
[1672758055119,114.3703,12.29,12.277,79.44711669]
[1672758055750,30.0,12.289,12.277,79.44711669]
[1672758056276,114.3703,12.29,12.277,79.44711669]
[1672758056469,61.08,12.292,12.277,79.44711669]
[1672758056682,61.03,12.301,12.28,5.66]
[1672758056888,61.03,12.301,12.281,20.0]
[1672758057119,61.03,12.301,12.281,79.44711669]
[1672758057320,61.03,12.301,12.283,30.0]
[1672758057527,61.03,12.301,12.284,20.0]
[1672758057732,61.03,12.301,12.284,79.44711669]
[1672758058467,61.0,12.307,12.285,89.44711669]
[1672758058681,61.0,12.307,12.286,20.0]
[1672758059006,30.0,12.306,12.286,79.44711669]
[1672758059204,61.01,12.305,12.286,79.44711669]
[1672758059414,30.0,12.304,12.287,30.0]
[1672758059618,61.02,12.303,12.288,20.0]
[1672758059834,61.01,12.305,12.288,20.0]
[1672758060064,61.0,12.307,12.29,5.66]
[1672758060255,179.5483,12.307,12.292,30.0]
[1672758060464,30.0,12.306,12.293,20.0]
[1672758060686,61.01,12.305,12.293,20.0]
[1672758061097,61.01,12.305,12.291,20.0]
[1672758061321,30.0,12.304,12.284,20.0]
[1672758061515,61.02,12.303,12.286,59.44711669]
[1672758061717,61.02,12.303,12.287,20.0]
[1672758061932,30.0,12.302,12.287,20.0]
[1672758062142,61.03,12.301,12.287,20.0]
[1672758062472,61.03,12.301,12.287,79.44711669]
[1672758062688,61.02,12.303,12.287,79.44711669]
[1672758062885,61.02,12.303,12.287,20.0]
[1672758063097,61.02,12.303,12.29,5.66]
[1672758063423,61.02,12.303,12.291,20.0]
[1672758064371,61.02,12.303,12.288,59.44711669]
[1672758064592,61.02,12.303,12.289,20.0]
[1672758065413,61.02,12.303,12.289,79.44711669]
[1672758065621,61.02,12.303,12.29,5.66]
[1672758065843,61.01,12.305,12.291,20.0]
[1672758066052,30.0,12.304,12.291,20.0]
[1672758066272,61.02,12.303,12.292,30.0]
[1672758066478,61.01,12.305,12.293,20.0]
[1672758066797,61.01,12.305,12.293,79.44711669]
[1672758067007,61.01,12.305,12.294,59.44711669]
[1672758067223,61.01,12.305,12.295,20.0]
[1672758067224,30.0,12.304,12.295,20.0]
[1672758067414,61.02,12.303,12.293,20.0]
[1672758067830,61.02,12.303,12.291,20.0]
[1672758068044,61.01,12.305,12.293,59.44711669]
[1672758068258,30.0,12.304,12.294,20.0]
[1672758068471,61.02,12.303,12.294,20.0]
[1672758068677,61.01,12.306,12.295,59.44711669]
[1672758068891,61.01,12.306,12.296,20.0]
[1672758070256,30.0,12.305,12.292,59.44711669]
[1672758070461,30.0,12.305,12.293,20.0]
[1672758070462,61.02,12.304,12.293,20.0]
[1672758071312,30.0,12.303,12.293,20.0]
[1672758071632,61.03,12.302,12.293,20.0]
[1672758072040,30.0,12.301,12.286,20.0]
[1672758072370,61.04,12.3,12.286,20.0]
[1672758072564,118.5041,12.299,12.286,20.0]
[1672758073201,30.0,12.297,12.286,20.0]
[1672758073942,30.0,12.297,12.284,20.0]
[1672758074875,61.05,12.298,12.284,20.0]
[1672758075512,30.0,12.297,12.284,20.0]
[1672758075717,61.06,12.296,12.281,20.0]
[1672758075922,30.0,12.297,12.275,30.0]
[1672758076159,61.06,12.296,12.27,5.64]
[1672758076674,26.70344647,12.295,12.27,5.64]
[1672758076895,91.07,12.294,12.27,5.64]
[1672758077104,26.70344647,12.293,12.27,5.64]
[1672758077313,26.70344647,12.291,12.27,28.37]
[1672758077517,117.2125,12.292,12.271,89.44711669]
[1672758077724,117.2125,12.292,12.28,5.61]
[1672758077941,30.0,12.297,12.281,20.0]
[1672758078799,30.0,12.297,12.282,59.44711669]
[1672758078982,117.2125,12.299,12.283,20.0]
[1672758079196,117.2125,12.299,12.284,30.0]
[1672758079403,117.2125,12.299,12.284,89.44711669]
[1672758079614,117.2125,12.299,12.285,79.44711669]
[1672758080039,117.2125,12.299,12.287,30.0]
[1672758080251,117.2125,12.299,12.288,20.0]
[1672758080470,117.2125,12.299,12.288,79.44711669]
[1672758082156,117.2125,12.299,12.288,20.0]
[1672758082470,117.2125,12.299,12.285,20.0]
[1672758083502,117.2125,12.299,12.285,79.44711669]
[1672758083714,117.2125,12.299,12.287,30.0]
[1672758083930,117.2125,12.299,12.288,20.0]
[1672758084127,117.2125,12.299,12.288,47.15595272]
[1672758084334,117.2125,12.299,12.289,27.15595272]
[1672758084564,61.05,12.298,12.29,20.0]
[1672758084777,117.2125,12.299,12.29,20.0]
[1672758084993,117.2125,12.299,12.291,27.15595272]
[1672758085390,117.2125,12.299,12.292,20.0]
[1672758085825,117.2125,12.299,12.293,27.15595272]
[1672758086242,117.2125,12.299,12.294,20.0]
[1672758086458,61.03,12.302,12.294,20.0]
[1672758086670,176.2977,12.304,12.295,27.15595272]
[1672758087078,176.2977,12.304,12.296,20.0]
[1672758087601,176.2977,12.304,12.297,27.15595272]
[1672758088118,176.2977,12.304,12.298,20.0]
[1672758088544,176.2977,12.304,12.299,27.15595272]
[1672758089403,61.02,12.304,12.299,27.15595272]
[1672758089604,61.0,12.307,12.299,27.15595272]
[1672758089809,30.0,12.306,12.299,27.15595272]
[1672758090139,61.01,12.305,12.298,20.0]
[1672758090352,61.01,12.305,12.297,27.15595272]
[1672758090547,30.0,12.304,12.298,20.0]
[1672758090765,61.02,12.303,12.298,20.0]
[1672758091173,61.02,12.303,12.298,33.57797636]
[1672758091379,61.01,12.305,12.298,47.15595272]
[1672758091798,30.0,12.304,12.298,47.15595272]
[1672758092030,61.02,12.303,12.298,47.15595272]
[1672758092244,61.02,12.303,12.298,20.0]
[1672758092445,61.02,12.303,12.296,27.15595272]
[1672758092647,61.02,12.303,12.297,20.0]
[1672758093080,61.02,12.303,12.297,47.15595272]
[1672758094015,61.01,12.305,12.297,47.15595272]
[1672758094438,61.0,12.308,12.297,47.15595272]
[1672758095180,30.0,12.307,12.297,47.15595272]
[1672758095380,61.01,12.306,12.297,47.15595272]
[1672758096638,115.0602,12.309,12.297,47.15595272]
[1672758096957,115.0602,12.309,12.298,89.02815944]
[1672758097167,115.0602,12.309,12.3,30.0]
[1672758097387,115.0602,12.309,12.301,20.0]
[1672758097581,115.0602,12.309,12.301,106.60306941]
[1672758097788,115.0602,12.309,12.302,13.57797636]
[1672758098002,115.0602,12.309,12.303,50.0]
[1672758098212,115.0602,12.309,12.303,109.44711669]
[1672758098432,115.0602,12.309,12.304,27.15595272]
[1672758098645,115.0602,12.309,12.305,20.0]
[1672758098849,60.96,12.316,12.305,20.0]
[1672758099063,110.7489,12.316,12.306,27.15595272]
[1672758099368,110.7489,12.316,12.307,20.0]
[1672758099911,150.78021345,12.321,12.308,27.15595272]
[1672758100118,264.47241345,12.321,12.309,20.0]
[1672758100329,264.47241345,12.321,12.307,20.0]
[1672758100748,264.47241345,12.321,12.308,27.15595272]
[1672758100967,96.6,12.32,12.308,86.60306941]
[1672758101163,96.6,12.32,12.293,30.0]
[1672758101485,119.24,12.32,12.293,30.0]
[1672758101682,102.29,12.32,12.293,30.0]
[1672758101886,119.28,12.32,12.293,30.0]
[1672758102949,119.28,12.32,12.294,20.0]
[1672758103277,164.77713085,12.32,12.294,20.0]
[1672758104431,119.28,12.32,12.294,20.0]
[1672758104645,5.63,12.31,12.284,30.0]
[1672758104833,30.0,12.308,12.284,30.0]
[1672758105047,61.0,12.307,12.284,30.0]
[1672758105989,30.0,12.306,12.284,30.0]
[1672758106199,61.01,12.305,12.286,20.0]
[1672758106410,61.01,12.305,12.284,30.0]
[1672758106740,30.0,12.304,12.284,30.0]
[1672758106950,61.02,12.303,12.284,30.0]
[1672758107688,30.0,12.304,12.284,30.0]
[1672758107877,30.0,12.304,12.286,20.0]
[1672758108087,30.0,12.304,12.284,30.0]
[1672758108312,61.02,12.303,12.284,30.0]
[1672758108510,61.02,12.303,12.28,32.87595272]
[1672758108723,61.02,12.303,12.28,5.72]
[1672758109154,61.02,12.303,12.28,28.36]
[1672758109368,61.02,12.303,12.281,20.0]
[1672758109573,61.02,12.303,12.28,5.72]
[1672758109784,30.0,12.302,12.28,5.72]
[1672758110112,61.03,12.301,12.28,5.72]
[1672758110946,61.02,12.303,12.281,20.0]
[1672758111269,30.0,12.302,12.282,30.0]
[1672758111451,61.03,12.301,12.283,20.0]
[1672758111658,140.5726,12.302,12.283,20.0]
[1672758112103,61.03,12.301,12.283,20.0]
[1672758112626,61.03,12.301,12.284,56.61798717]
[1672758112841,30.0,12.3,12.285,50.0]
[1672758113056,61.04,12.299,12.285,30.0]
[1672758113367,61.03,12.301,12.286,20.0]
[1672758113674,30.0,12.3,12.286,20.0]
[1672758114310,61.04,12.299,12.286,20.0]
[1672758114526,30.0,12.3,12.286,20.0]
[1672758115678,30.0,12.3,12.283,20.0]
[1672758116507,61.04,12.299,12.283,20.0]
[1672758116718,61.03,12.301,12.283,20.0]
[1672758116933,140.5726,12.302,12.283,20.0]
[1672758117472,30.0,12.3,12.283,20.0]
[1672758118418,61.03,12.301,12.283,20.0]
[1672758118605,30.0,12.3,12.283,20.0]
[1672758120000,61.04,12.299,12.283,20.0]
[1672758120630,30.0,12.3,12.283,20.0]
[1672758120939,30.0,12.298,12.283,20.0]
[1672758121679,30.0,12.296,12.281,20.0]
[1672758121874,61.06,12.295,12.281,20.0]
[1672758122071,61.06,12.295,12.278,20.0]
[1672758122072,115.5322,12.294,12.278,20.0]
[1672758122287,115.5322,12.294,12.276,20.0]
[1672758122288,61.07,12.293,12.276,20.0]
[1672758122516,61.07,12.293,12.275,20.0]
[1672758122710,54.26998064,12.292,12.275,20.0]
[1672758122921,61.08,12.291,12.275,20.0]
[1672758123126,30.0,12.29,12.275,20.0]
[1672758123338,61.09,12.289,12.275,20.0]
[1672758123665,30.0,12.288,12.275,20.0]
[1672758123860,24.07407365,12.287,12.275,20.0]
[1672758124070,85.17407365,12.287,12.274,20.0]
[1672758124298,30.0,12.3,12.28,5.61]
[1672758124950,61.05,12.297,12.28,5.61]
[1672758125448,30.0,12.296,12.28,5.61]
[1672758126091,30.0,12.296,12.281,20.0]
[1672758126497,61.06,12.295,12.281,20.0]
[1672758126713,30.0,12.294,12.281,20.0]
[1672758126919,30.0,12.292,12.276,20.0]
[1672758127233,61.08,12.291,12.276,20.0]
[1672758127444,117.5655,12.29,12.276,20.0]
[1672758127656,30.0,12.289,12.276,20.0]
[1672758127861,117.5655,12.29,12.276,20.0]
[1672758128075,61.09,12.289,12.276,20.0]
[1672758128825,61.09,12.289,12.275,30.0]
[1672758129037,117.5655,12.29,12.275,30.0]
[1672758129650,117.5655,12.29,12.275,29.0]
[1672758130073,61.07,12.293,12.275,29.0]
[1672758130289,61.04,12.299,12.28,5.62]
[1672758131225,61.03,12.301,12.281,20.0]
[1672758131432,30.0,12.3,12.281,20.0]
[1672758131658,61.04,12.299,12.281,20.0]
[1672758132078,30.0,12.298,12.281,20.0]
[1672758132275,61.05,12.297,12.281,20.0]
[1672758132492,30.0,12.296,12.276,20.0]
[1672758132694,61.06,12.295,12.276,20.0]
[1672758133336,114.09713085,12.295,12.276,20.0]
[1672758133559,30.0,12.294,12.276,20.0]
[1672758133754,61.07,12.293,12.276,20.0]
[1672758134087,30.0,12.292,12.275,29.0]
[1672758134395,61.08,12.291,12.273,30.0]
[1672758134607,30.0,12.29,12.273,30.0]
[1672758134805,61.09,12.289,12.273,30.0]
[1672758135018,30.0,12.288,12.273,30.0]
[1672758135227,61.1,12.287,12.273,30.0]
[1672758135562,61.1,12.287,12.274,20.0]
[1672758136695,61.1,12.288,12.274,20.0]
[1672758137565,30.0,12.287,12.274,20.0]
[1672758137889,61.11,12.286,12.274,20.0]
[1672758138098,111.443,12.289,12.274,20.0]
[1672758138308,111.443,12.289,12.274,28.594]
[1672758138504,111.443,12.289,12.275,30.0]
[1672758138712,61.06,12.295,12.276,20.0]
[1672758138927,30.0,12.296,12.278,30.0]
[1672758139133,61.06,12.295,12.28,5.66]
[1672758139346,61.05,12.297,12.28,5.66]
[1672758139562,61.05,12.297,12.281,20.0]
[1672758140419,30.0,12.296,12.281,19.0]
[1672758140636,61.06,12.295,12.281,19.0]
[1672758141031,61.05,12.297,12.281,19.0]
[1672758141362,61.05,12.297,12.282,30.0]
[1672758141545,112.7857,12.298,12.282,30.0]
[1672758141759,61.05,12.297,12.283,16.3]
[1672758141987,61.05,12.297,12.282,30.0]
[1672758141988,61.05,12.297,12.282,46.3]
[1672758142180,61.05,12.297,12.283,20.0]
[1672758142388,61.05,12.297,12.284,30.0]
[1672758142601,61.05,12.297,12.285,20.0]
[1672758143017,112.7857,12.298,12.285,20.0]
[1672758143447,61.05,12.297,12.285,20.0]
[1672758147760,61.05,12.297,12.283,20.0]
[1672758149131,87.7857,12.298,12.283,20.0]
[1672758149337,71.63010709,12.319,12.29,5.61]
[1672758149338,61.0,12.308,12.29,5.61]
[1672758151014,61.0,12.308,12.29,28.24]
[1672758151222,61.0,12.308,12.292,30.0]
[1672758151451,61.0,12.308,12.293,20.0]
[1672758151668,61.0,12.308,12.294,30.0]
[1672758151851,61.0,12.308,12.293,20.0]
[1672758152067,30.0,12.307,12.293,20.0]
[1672758152277,61.01,12.306,12.293,20.0]
[1672758153115,61.01,12.306,12.291,20.0]
[1672758154286,30.0,12.305,12.291,20.0]
[1672758154491,61.02,12.304,12.282,80.3609]
[1672758154708,30.0,12.303,12.282,80.3609]
[1672758155019,30.0,12.301,12.28,5.72]
[1672758155342,30.0,12.299,12.28,5.72]
[1672758155546,30.0,12.297,12.28,5.72]
[1672758155742,61.06,12.296,12.28,5.72]
[1672758156267,30.0,12.295,12.28,5.72]
[1672758156481,61.07,12.294,12.28,5.72]
[1672758157325,30.0,12.293,12.28,5.72]
[1672758157534,61.08,12.292,12.281,20.0]
[1672758157745,30.0,12.291,12.281,20.0]
[1672758157962,61.08,12.292,12.281,20.0]
[1672758158168,61.07,12.294,12.28,30.0]
[1672758158492,61.07,12.294,12.281,20.0]
[1672758158695,61.06,12.296,12.281,20.0]
[1672758159877,61.06,12.296,12.282,30.0]
[1672758160070,61.06,12.296,12.283,20.0]
[1672758160490,61.05,12.297,12.283,20.0]
[1672758161122,30.0,12.296,12.283,20.0]
[1672758161445,30.0,12.294,12.278,1.38002947]
[1672758161655,61.07,12.293,12.278,1.38002947]
[1672758162074,61.07,12.293,12.28,5.66]
[1672758162285,61.06,12.295,12.28,5.66]
[1672758162491,61.06,12.295,12.28,35.66]
[1672758163124,61.06,12.295,12.282,30.0]
[1672758163330,30.0,12.294,12.283,20.0]
[1672758163544,61.07,12.293,12.283,20.0]
[1672758164603,61.06,12.295,12.283,20.0]
[1672758165434,36.06,12.295,12.284,45.08764946]
[1672758165641,61.03,12.301,12.285,54.19]
[1672758165842,58.33,12.32,12.286,30.0]
[1672758165843,5.28534595,12.304,12.286,30.0]
[1672758166058,172.5111,12.304,12.301,45.79825874]
[1672758166383,172.5111,12.304,12.287,184.27479531]
[1672758166384,61.02,12.304,12.287,184.27479531]
[1672758166589,61.02,12.304,12.288,45.17719531]
[1672758166590,174.4482,12.304,12.288,45.17719531]
[1672758166947,30.0,12.303,12.288,45.17719531]
[1672758167105,30.0,12.301,12.289,20.0]
[1672758167320,61.04,12.3,12.289,20.0]
[1672758167526,61.04,12.3,12.29,42.17079693]
[1672758167847,61.04,12.3,12.291,20.0]
[1672758168058,61.04,12.3,12.29,42.17079693]
[1672758168264,61.03,12.302,12.3,54.76687558]
[1672758168482,130.7183,12.302,12.292,46.9374636]
[1672758168699,59.53713085,12.301,12.292,46.9374636]
[1672758168910,69.6883,12.302,12.292,46.9374636]
[1672758169227,17.27137782,12.302,12.293,30.0]
[1672758169446,113.4282,12.303,12.302,31.06867264]
[1672758169641,61.01,12.306,12.302,20.0]
[1672758169847,61.01,12.306,12.303,20.0]
[1672758170065,61.01,12.306,12.303,63.99929143]
[1672758170263,61.01,12.306,12.304,48.7659581]
[1672758170474,61.01,12.306,12.305,20.0]
[1672758170895,61.01,12.306,12.305,68.7659581]
[1672758172155,4.05772337,12.306,12.305,68.7659581]
[1672758172366,61.01,12.306,12.305,68.7659581]
[1672758172589,61.0,12.308,12.305,68.7659581]
[1672758172797,61.0,12.308,12.306,52.66887733]
[1672758173006,60.99,12.31,12.307,20.0]
[1672758173216,60.98,12.311,12.305,68.7659581]
[1672758173537,170.3609,12.317,12.308,53.2228553]
[1672758173858,30.0,12.316,12.309,20.0]
[1672758174063,30.0,12.314,12.309,20.0]
[1672758174379,30.0,12.312,12.31,53.65618863]
[1672758174591,60.98,12.311,12.31,53.65618863]
[1672758174803,60.98,12.311,12.309,20.0]
[1672758174996,30.0,12.31,12.307,46.58467171]
[1672758175325,60.99,12.309,12.308,20.0]
[1672758175545,60.99,12.309,12.308,19.0]
[1672758175851,30.0,12.308,12.303,46.49020504]
[1672758176068,30.0,12.306,12.303,46.49020504]
[1672758176776,91.0,12.308,12.303,46.49020504]
[1672758176994,91.0,12.308,12.306,30.0]
[1672758177218,61.0,12.308,12.307,20.0]
[1672758177425,61.0,12.308,12.304,20.0]
[1672758177738,60.99,12.309,12.307,48.20307688]
[1672758177960,60.99,12.309,12.308,20.0]
[1672758178269,60.99,12.309,12.308,72.62307688]
[1672758180058,60.98,12.311,12.308,72.62307688]
[1672758180471,30.0,12.31,12.308,72.62307688]
[1672758181100,60.99,12.309,12.308,72.62307688]
[1672758182564,111.74546627,12.309,12.308,72.62307688]
[1672758182770,50.75546627,12.309,12.308,72.62307688]
[1672758185920,60.98,12.311,12.308,72.62307688]
[1672758186136,60.98,12.312,12.308,72.62307688]
[1672758186344,30.0,12.312,12.308,72.62307688]
[1672758187080,78.08931676,12.312,12.308,72.62307688]
[1672758187826,48.08931676,12.312,12.308,72.62307688]
[1672758188046,30.0,12.313,12.308,72.62307688]
[1672758188966,60.97,12.314,12.308,72.62307688]
[1672758189184,108.4355,12.315,12.308,72.62307688]
[1672758189942,30.0,12.314,12.308,72.62307688]
[1672758190132,90.97,12.314,12.308,72.62307688]
[1672758190772,60.97,12.314,12.308,72.62307688]
[1672758190983,169.3955,12.315,12.308,72.62307688]
[1672758191917,108.4355,12.315,12.308,72.62307688]
[1672758192341,108.4355,12.315,12.308,99.7790296]
[1672758192873,30.0,12.314,12.308,72.62307688]
[1672758193281,108.4355,12.315,12.308,72.62307688]
[1672758193818,30.0,12.313,12.308,72.62307688]
[1672758194036,30.0,12.311,12.308,72.62307688]
[1672758194442,30.0,12.311,12.308,20.0]
[1672758194650,30.0,12.311,12.309,20.0]
[1672758194870,30.0,12.311,12.304,47.0694496]
[1672758195077,74.49106541,12.31,12.293,13.57797636]
[1672758195290,30.0,12.308,12.296,45.00664413]
[1672758195606,61.0,12.307,12.296,45.00664413]
[1672758195806,30.0,12.306,12.296,45.00664413]
[1672758196017,92.47106541,12.306,12.296,45.00664413]
[1672758196226,62.47106541,12.305,12.296,45.00664413]
[1672758196642,30.0,12.304,12.296,45.00664413]
[1672758197084,62.47106541,12.303,12.296,45.00664413]
[1672758197290,30.0,12.302,12.296,45.00664413]
[1672758197493,30.0,12.302,12.297,20.0]
[1672758197907,30.0,12.302,12.298,49.63659994]
[1672758198120,62.47106541,12.303,12.302,30.0]
[1672758198440,30.0,12.304,12.3,42.80475327]
[1672758199065,30.0,12.304,12.287,100.0194]
[1672758199275,30.0,12.304,12.287,103.79812795]
[1672758199699,30.0,12.302,12.287,103.79812795]
[1672758199927,107.241,12.303,12.287,81.18652795]
[1672758200237,46.221,12.303,12.288,20.0]
[1672758200447,30.0,12.301,12.288,20.0]
[1672758200762,30.0,12.301,12.289,48.25206128]
[1672758200979,30.0,12.301,12.29,20.0]
[1672758201289,30.0,12.301,12.291,48.68539462]
[1672758201504,30.0,12.301,12.292,20.0]
[1672758201903,30.0,12.301,12.293,48.68539462]
[1672758202115,30.0,12.301,12.294,20.0]
[1672758202542,30.0,12.301,12.295,48.68539462]
[1672758202757,30.0,12.301,12.296,20.0]
[1672758203075,30.0,12.301,12.297,55.70539462]
[1672758203282,30.0,12.301,12.298,20.0]
[1672758203481,30.0,12.302,12.298,20.0]
[1672758203689,30.0,12.302,12.299,57.00886128]
[1672758203898,30.0,12.304,12.299,57.00886128]
[1672758204104,91.0,12.308,12.302,30.0]
[1672758204433,30.0,12.308,12.303,20.0]
[1672758204858,30.0,12.308,12.304,62.29634149]
[1672758205059,30.0,12.308,12.305,20.0]
[1672758205484,30.0,12.308,12.306,62.29634149]
[1672758205706,30.0,12.308,12.307,20.0]
[1672758206236,30.0,12.308,12.307,81.42967482]
[1672758206428,30.0,12.311,12.307,81.42967482]
[1672758206639,30.0,12.311,12.308,30.0]
[1672758206849,30.0,12.311,12.309,20.0]
[1672758207062,90.97,12.313,12.307,72.67241696]
[1672758207260,30.0,12.313,12.31,56.05241696]
[1672758208242,30.0,12.313,12.307,20.0]
[1672758208431,30.0,12.313,12.3,20.0]
[1672758208634,30.0,12.313,12.307,50.07068363]
[1672758208842,30.0,12.313,12.308,20.0]
[1672758209367,30.0,12.313,12.309,50.07068363]
[1672758209576,30.0,12.314,12.309,50.07068363]
[1672758209790,30.0,12.315,12.309,50.07068363]
[1672758210002,113.1469,12.316,12.309,50.07068363]
[1672758210627,93.1439,12.316,12.309,50.07068363]
[1672758210956,30.0,12.318,12.309,50.07068363]
[1672758217579,90.95,12.318,12.309,50.07068363]
[1672758218330,90.95,12.318,12.309,49.57068363]
[1672758218533,90.95,12.318,12.31,54.12512677]
[1672758218748,30.0,12.318,12.31,54.12512677]
[1672758220211,90.95,12.318,12.31,54.12512677]
[1672758220626,90.95,12.318,12.308,20.0]
[1672758220835,90.95,12.318,12.304,44.13426277]
[1672758221157,90.95,12.318,12.305,20.0]
[1672758221571,90.95,12.318,12.305,64.13426277]
[1672758225977,30.0,12.318,12.305,64.13426277]
[1672758228212,90.95,12.318,12.305,64.13426277]
[1672758229043,30.0,12.318,12.305,64.13426277]
[1672758231046,60.94,12.32,12.305,64.13426277]
[1672758231262,263.6985518,12.322,12.306,13.49856512]
[1672758231457,79.3567,12.321,12.308,30.0]
[1672758231669,79.3567,12.321,12.309,33.49856512]
[1672758231880,79.3567,12.321,12.309,85.45180521]
[1672758232312,30.0,12.32,12.31,51.95324009]
[1672758232628,30.0,12.32,12.305,47.0172]
[1672758232836,60.94,12.319,12.307,39.38197489]
[1672758233049,30.0,12.318,12.307,39.38197489]
[1672758233241,60.95,12.317,12.307,39.38197489]
[1672758233448,30.0,12.316,12.307,39.38197489]
[1672758234734,30.0,12.316,12.308,20.0]
[1672758235135,30.0,12.316,12.309,47.96197489]
[1672758235350,60.94,12.319,12.309,47.96197489]
[1672758235787,30.0,12.318,12.309,47.96197489]
[1672758236919,90.94,12.32,12.309,47.96197489]
[1672758239567,89.94,12.32,12.309,47.96197489]
[1672758240708,60.94,12.32,12.309,47.96197489]
[1672758241041,30.0,12.321,12.309,47.96197489]
[1672758241558,90.93,12.321,12.309,47.96197489]
[1672758241969,30.0,12.321,12.309,47.96197489]
[1672758244608,372.9326518,12.322,12.309,47.96197489]
[1672758244819,30.0,12.321,12.309,47.96197489]
[1672758247440,30.0,12.321,12.31,20.0]
[1672758247651,30.0,12.321,12.31,32.03]
[1672758247871,30.0,12.321,12.311,51.89228621]
[1672758248083,30.0,12.321,12.312,20.0]
[1672758248492,30.0,12.321,12.313,51.89228621]
[1672758248702,30.0,12.321,12.314,20.0]
[1672758249119,30.0,12.321,12.315,51.89228621]
[1672758249326,30.0,12.321,12.316,20.0]
[1672758249775,312.0026518,12.322,12.317,51.89228621]
[1672758249982,150.7808518,12.322,12.318,20.0]
[1672758250174,150.7808518,12.322,12.319,3.42440388]
[1672758250385,150.7808518,12.322,12.319,55.31669009]
[1672758250592,150.7808518,12.322,12.319,51.89228621]
[1672758250798,30.0,12.321,12.319,51.89228621]
[1672758251650,150.7808518,12.322,12.319,51.89228621]
[1672758251855,150.7808518,12.322,12.32,2.13949078]
[1672758252280,150.7808518,12.322,12.321,53.29108621]
[1672758254814,150.7808518,12.322,12.301,52.8839]
[1672758255023,110.4259,12.321,12.303,159.1482]
[1672758255224,30.0,12.32,12.304,20.0]
[1672758255436,99.30579209,12.32,12.304,50.01634563]
[1672758255640,30.0,12.318,12.305,30.01634563]
[1672758255860,30.0,12.318,12.306,20.0]
[1672758256270,30.0,12.318,12.307,30.01634563]
[1672758256700,30.0,12.318,12.308,20.0]
[1672758257136,30.0,12.318,12.308,50.01634563]
[1672758257750,30.0,12.318,12.308,30.01634563]
[1672758258391,30.0,12.318,12.29,60.05]
[1672758258392,60.95,12.317,12.29,60.05]